[Event "Late-Titled-Tuesday-Blitz-April-23-2024"]
[Site "Chess.com"]
[Date "2024.04.23"]
[Round "6"]
[White "Fh2411"]
[Black "MarkoPe"]
[Result "1-0"]
[WhiteElo "2554"]
[BlackElo "2389"]
[TimeControl "180+1"]
[EndTime "15:08:15 PDT"]
[Termination "Fh2411 won on time"]

1. d4 {[%clk 0:02:59.5]} 1... c6 {[%clk 0:03:00.9]} 2. Bf4 {[%clk 0:02:56.8]}
2... d6 {[%clk 0:03:01.8]} 3. e3 {[%clk 0:02:57.2]} 3... Nd7 {[%clk 0:03:02.3]}
4. Nf3 {[%clk 0:02:57.1]} 4... Ngf6 {[%clk 0:03:01.2]} 5. h3 {[%clk 0:02:57.1]}
5... g6 {[%clk 0:03:01.7]} 6. Be2 {[%clk 0:02:55.9]} 6... Bg7 {[%clk 0:03:02.2]}
7. O-O {[%clk 0:02:56.7]} 7... O-O {[%clk 0:03:02.8]} 8. c4 {[%clk 0:02:57.3]}
8... Qc7 {[%clk 0:03:03.1]} 9. Nc3 {[%clk 0:02:57.3]} 9... e5 {[%clk 0:03:03.6]}
10. Bh2 {[%clk 0:02:57.7]} 10... b6 {[%clk 0:03:03.4]} 11. Qc2 {[%clk
0:02:52.7]} 11... a5 {[%clk 0:03:03.1]} 12. Rfd1 {[%clk 0:02:51.7]} 12... Re8
{[%clk 0:03:03.5]} 13. Rd2 {[%clk 0:02:37.3]} 13... Bb7 {[%clk 0:03:00.8]} 14.
Rad1 {[%clk 0:02:36.6]} 14... Rad8 {[%clk 0:02:56]} 15. dxe5 {[%clk 0:02:12.3]}
15... dxe5 {[%clk 0:02:42.5]} 16. Nxe5 {[%clk 0:02:11.8]} 16... Rxe5 {[%clk
0:02:27.7]} 17. Bf3 {[%clk 0:01:40.4]} 17... Rde8 {[%clk 0:02:18.1]} 18. Na4
{[%clk 0:01:19.4]} 18... c5 {[%clk 0:01:44.2]} 19. Bxb7 {[%clk 0:01:09.1]} 19...
Qxb7 {[%clk 0:01:45.1]} 20. Bxe5 {[%clk 0:01:05.9]} 20... Nxe5 {[%clk 0:01:46]}
21. Rd8 {[%clk 0:00:59]} 21... h6 {[%clk 0:00:45.5]} 22. Qb3 {[%clk 0:00:54.9]}
22... Ned7 {[%clk 0:00:20.8]} 23. R1xd7 {[%clk 0:00:53.4]} 23... Qxd7 {[%clk
0:00:15.9]} 24. Rxd7 {[%clk 0:00:51.8]} 24... Nxd7 {[%clk 0:00:16.8]} 25. Qb5
{[%clk 0:00:48.4]} 25... Re7 {[%clk 0:00:16.4]} 26. b3 {[%clk 0:00:45.2]} 26...
Nf6 {[%clk 0:00:04.8]} 27. Nxb6 {[%clk 0:00:42.8]} 27... Ne4 {[%clk 0:00:05.3]}
28. Qc6 {[%clk 0:00:39.6]} 28... Re6 {[%clk 0:00:04.1]} 29. Qc8+ {[%clk
0:00:36.5]} 29... Kh7 {[%clk 0:00:04.4]} 30. Nd5 {[%clk 0:00:30.5]} 30... Be5
{[%clk 0:00:02.6]} 31. g3 {[%clk 0:00:28.1]} 31... h5 {[%clk 0:00:02.2]} 32. h4
{[%clk 0:00:28.1]} 32... Kg7 {[%clk 0:00:02.1]} 33. Qa8 {[%clk 0:00:23.6]} 33...
Bd6 {[%clk 0:00:02.1]} 34. Qxa5 {[%clk 0:00:23]} 34... Nd2 {[%clk 0:00:02.1]}
35. Qxd2 {[%clk 0:00:22.6]} 1-0

[Event "Late-Titled-Tuesday-Blitz-April-23-2024"]
[Site "Chess.com"]
[Date "2024.04.23"]
[Round "6"]
[White "jinxy2009"]
[Black "Sesleria"]
[Result "1/2-1/2"]
[WhiteElo "2297"]
[BlackElo "2142"]
[TimeControl "180+1"]
[EndTime "15:08:18 PDT"]
[Termination "Game drawn by agreement"]

1. e4 {[%clk 0:03:00.9]} 1... c5 {[%clk 0:02:59.6]} 2. Nf3 {[%clk 0:03:00.7]}
2... e6 {[%clk 0:03:00.1]} 3. d4 {[%clk 0:03:01]} 3... cxd4 {[%clk 0:03:00.8]}
4. Nxd4 {[%clk 0:03:01.6]} 4... a6 {[%clk 0:03:01.3]} 5. Bd3 {[%clk 0:03:00.2]}
5... Qc7 {[%clk 0:03:00.4]} 6. O-O {[%clk 0:03:00]} 6... Nf6 {[%clk 0:03:00.4]}
7. Qe2 {[%clk 0:03:00.2]} 7... d6 {[%clk 0:03:00.3]} 8. c4 {[%clk 0:02:58.7]}
8... Nc6 {[%clk 0:02:58.9]} 9. Be3 {[%clk 0:02:55.6]} 9... Be7 {[%clk
0:02:57.4]} 10. f4 {[%clk 0:02:55.7]} 10... O-O {[%clk 0:02:50.3]} 11. Nf3
{[%clk 0:02:55.5]} 11... Ng4 {[%clk 0:02:46.3]} 12. Bd2 {[%clk 0:02:51.9]} 12...
Qb6+ {[%clk 0:02:42.7]} 13. Kh1 {[%clk 0:02:51.1]} 13... Qxb2 {[%clk 0:02:34.3]}
14. h3 {[%clk 0:02:34.3]} 14... Qxa1 {[%clk 0:02:29.3]} 15. Bc3 {[%clk
0:02:34.8]} 15... Qxc3 {[%clk 0:02:24.1]} 16. Nxc3 {[%clk 0:02:34.5]} 16... Nf6
{[%clk 0:02:23.4]} 17. e5 {[%clk 0:02:33.8]} 17... Nh5 {[%clk 0:02:20.6]} 18.
exd6 {[%clk 0:02:24.2]} 18... Ng3+ {[%clk 0:02:19.3]} 19. Kh2 {[%clk 0:02:22.8]}
19... Nxe2 {[%clk 0:02:19.6]} 20. dxe7 {[%clk 0:02:23.2]} 20... Nxe7 {[%clk
0:02:11.1]} 21. Nxe2 {[%clk 0:02:19.9]} 21... Bd7 {[%clk 0:02:11.2]} 22. Rb1
{[%clk 0:02:17.1]} 22... Bc6 {[%clk 0:02:10.9]} 23. Ne5 {[%clk 0:02:17.1]} 23...
Rfd8 {[%clk 0:02:09.6]} 24. Nxc6 {[%clk 0:02:14.5]} 24... Nxc6 {[%clk
0:02:07.2]} 25. Be4 {[%clk 0:02:12.1]} 25... Rd2 {[%clk 0:02:03.8]} 26. Bf3
{[%clk 0:02:08.8]} 26... Na5 {[%clk 0:01:41.9]} 27. Nc3 {[%clk 0:02:07.4]} 27...
Nxc4 {[%clk 0:01:36.9]} 28. Rxb7 {[%clk 0:02:05.3]} 28... f5 {[%clk 0:01:24.2]}
29. Rc7 {[%clk 0:02:04.9]} 29... Nb6 {[%clk 0:01:11.6]} 30. Bxa8 {[%clk
0:02:03.9]} 30... Nxa8 {[%clk 0:01:12.5]} 31. Rc8+ {[%clk 0:02:04.1]} 31... Kf7
{[%clk 0:01:13.2]} 32. Rxa8 {[%clk 0:02:04.5]} 32... Rc2 {[%clk 0:01:13.2]} 33.
Na4 {[%clk 0:02:01]} 33... Rxa2 {[%clk 0:01:12.9]} 34. Rxa6 {[%clk 0:02:01.1]}
34... h6 {[%clk 0:01:07.4]} 35. Nc5 {[%clk 0:02:01.2]} 35... Re2 {[%clk
0:01:05.7]} 36. Nd7 {[%clk 0:01:59.1]} 36... g5 {[%clk 0:01:01]} 37. fxg5 {[%clk
0:01:52.1]} 37... hxg5 {[%clk 0:01:00.8]} 38. Ra7 {[%clk 0:01:49.9]} 38... f4
{[%clk 0:00:54.1]} 39. Ne5+ {[%clk 0:01:49.2]} 39... Kf6 {[%clk 0:00:52.8]} 40.
Nf3 {[%clk 0:01:48.5]} 40... e5 {[%clk 0:00:49.6]} 41. Ng1 {[%clk 0:01:41.5]}
41... Rb2 {[%clk 0:00:45.5]} 42. Ra1 {[%clk 0:01:10.8]} 42... e4 {[%clk
0:00:45]} 43. Rf1 {[%clk 0:01:09.4]} 43... Kf5 {[%clk 0:00:42.7]} 44. Kh1 {[%clk
0:01:03.6]} 44... g4 {[%clk 0:00:20.1]} 45. hxg4+ {[%clk 0:00:59.3]} 45... Kxg4
{[%clk 0:00:21]} 46. Re1 {[%clk 0:00:59.3]} 46... e3 {[%clk 0:00:16.6]} 47. Nf3
{[%clk 0:00:59.8]} 47... Kg3 {[%clk 0:00:14.6]} 48. Nd4 {[%clk 0:00:40.3]} 48...
Rf2 {[%clk 0:00:11.8]} 49. Ne2+ {[%clk 0:00:39.4]} 49... Kg4 {[%clk 0:00:11.6]}
50. Kg1 {[%clk 0:00:39.5]} 50... f3 {[%clk 0:00:11.3]} 51. gxf3+ {[%clk
0:00:39.8]} 51... Kxf3 {[%clk 0:00:12]} 52. Nd4+ {[%clk 0:00:39.5]} 52... Kg3
{[%clk 0:00:12.4]} 53. Re2 {[%clk 0:00:37.9]} 53... Rxe2 {[%clk 0:00:12.5]} 54.
Nxe2+ {[%clk 0:00:38.5]} 54... Kf3 {[%clk 0:00:13.1]} 55. Kf1 {[%clk 0:00:39.3]}
55... Ke4 {[%clk 0:00:13.1]} 56. Ke1 {[%clk 0:00:40.2]} 1/2-1/2

[Event "Late-Titled-Tuesday-Blitz-April-23-2024"]
[Site "Chess.com"]
[Date "2024.04.23"]
[Round "6"]
[White "LiemLe"]
[Black "Vladimir_2020"]
[Result "1-0"]
[WhiteElo "3059"]
[BlackElo "2773"]
[TimeControl "180+1"]
[EndTime "15:08:19 PDT"]
[Termination "LiemLe won on time"]

1. Nf3 {[%clk 0:03:00.9]} 1... d5 {[%clk 0:02:59.4]} 2. e3 {[%clk 0:03:01.4]}
2... Nf6 {[%clk 0:02:57.8]} 3. c4 {[%clk 0:03:01.8]} 3... c6 {[%clk 0:02:58.1]}
4. Nc3 {[%clk 0:03:01.9]} 4... a6 {[%clk 0:02:57.8]} 5. b3 {[%clk 0:03:01.3]}
5... Bg4 {[%clk 0:02:54.2]} 6. h3 {[%clk 0:02:51.7]} 6... Bxf3 {[%clk
0:02:53.6]} 7. Qxf3 {[%clk 0:02:51.5]} 7... e6 {[%clk 0:02:53.9]} 8. Bb2 {[%clk
0:02:51.2]} 8... Nbd7 {[%clk 0:02:54.1]} 9. d4 {[%clk 0:02:46.3]} 9... Bd6
{[%clk 0:02:40.9]} 10. Bd3 {[%clk 0:02:45.8]} 10... O-O {[%clk 0:02:40.7]} 11.
O-O {[%clk 0:02:45.2]} 11... Qe7 {[%clk 0:02:31.3]} 12. Rad1 {[%clk 0:02:40.3]}
12... Rfe8 {[%clk 0:02:26.4]} 13. e4 {[%clk 0:02:35.2]} 13... dxc4 {[%clk
0:02:07.2]} 14. Bxc4 {[%clk 0:02:14.6]} 14... e5 {[%clk 0:02:06.9]} 15. d5
{[%clk 0:02:15.1]} 15... Nb6 {[%clk 0:01:57.8]} 16. dxc6 {[%clk 0:01:50.2]}
16... bxc6 {[%clk 0:01:36.7]} 17. Bd3 {[%clk 0:01:00.7]} 17... a5 {[%clk
0:01:35.3]} 18. Bc2 {[%clk 0:00:55.7]} 18... Bc5 {[%clk 0:01:18.5]} 19. Bc1
{[%clk 0:00:40.6]} 19... Nfd7 {[%clk 0:01:00.7]} 20. Ne2 {[%clk 0:00:36.7]}
20... Nf8 {[%clk 0:00:58.7]} 21. Rd3 {[%clk 0:00:22.2]} 21... Ne6 {[%clk
0:00:54.7]} 22. Bb2 {[%clk 0:00:21.4]} 22... a4 {[%clk 0:00:46.4]} 23. Rfd1
{[%clk 0:00:19.1]} 23... axb3 {[%clk 0:00:45.2]} 24. Bxb3 {[%clk 0:00:20]} 24...
Ng5 {[%clk 0:00:38]} 25. Qg4 {[%clk 0:00:19.4]} 25... h5 {[%clk 0:00:36.2]} 26.
Qxh5 {[%clk 0:00:16.9]} 26... Nxe4 {[%clk 0:00:35.1]} 27. Rf3 {[%clk 0:00:17.6]}
27... Nd5 {[%clk 0:00:31.2]} 28. Ng3 {[%clk 0:00:11.2]} 28... Nxg3 {[%clk
0:00:18.7]} 29. Rxg3 {[%clk 0:00:12.1]} 29... Nf4 {[%clk 0:00:18.7]} 30. Qg4
{[%clk 0:00:09.8]} 30... Qf6 {[%clk 0:00:17.9]} 31. Rd7 {[%clk 0:00:08.1]} 31...
Re7 {[%clk 0:00:16.5]} 32. Rxe7 {[%clk 0:00:07.8]} 32... Bxe7 {[%clk 0:00:16.7]}
33. Rf3 {[%clk 0:00:08.4]} 33... Rd8 {[%clk 0:00:10.3]} 34. g3 {[%clk
0:00:08.3]} 34... Nxh3+ {[%clk 0:00:06.8]} 35. Kg2 {[%clk 0:00:07.8]} 35... Nf4+
{[%clk 0:00:06.4]} 36. gxf4 {[%clk 0:00:08]} 36... Rd2 {[%clk 0:00:04.5]} 37.
Bxe5 {[%clk 0:00:07.9]} 37... Qh6 {[%clk 0:00:01.9]} 38. Rh3 {[%clk 0:00:08.2]}
1-0

[Event "Late-Titled-Tuesday-Blitz-April-23-2024"]
[Site "Chess.com"]
[Date "2024.04.23"]
[Round "6"]
[White "Mackster23"]
[Black "RebecaJimnz"]
[Result "0-1"]
[WhiteElo "2592"]
[BlackElo "2315"]
[TimeControl "180+1"]
[EndTime "15:08:19 PDT"]
[Termination "RebecaJimnz won on time"]

1. e4 {[%clk 0:03:00.9]} 1... c5 {[%clk 0:02:59.5]} 2. Nf3 {[%clk 0:02:58.5]}
2... e6 {[%clk 0:02:58.6]} 3. d4 {[%clk 0:02:58.6]} 3... cxd4 {[%clk 0:02:59.3]}
4. Nxd4 {[%clk 0:02:59.5]} 4... Nf6 {[%clk 0:02:58.4]} 5. Nc3 {[%clk 0:02:59.6]}
5... Nc6 {[%clk 0:02:58.6]} 6. Bf4 {[%clk 0:02:54.3]} 6... d6 {[%clk 0:02:38.8]}
7. Ndb5 {[%clk 0:02:51.8]} 7... e5 {[%clk 0:02:38.6]} 8. Bg5 {[%clk 0:02:51.9]}
8... a6 {[%clk 0:02:37.3]} 9. Na3 {[%clk 0:02:51.7]} 9... Be6 {[%clk 0:02:37.6]}
10. Nc4 {[%clk 0:02:44]} 10... Rb8 {[%clk 0:02:33.3]} 11. Ne3 {[%clk 0:02:33.4]}
11... Be7 {[%clk 0:02:28.6]} 12. Bxf6 {[%clk 0:02:32.8]} 12... Bxf6 {[%clk
0:02:29.5]} 13. Ncd5 {[%clk 0:02:32.3]} 13... Bg5 {[%clk 0:02:29.6]} 14. c3
{[%clk 0:02:24.2]} 14... O-O {[%clk 0:02:27.4]} 15. Bc4 {[%clk 0:02:21.2]} 15...
b5 {[%clk 0:02:03.5]} 16. Bb3 {[%clk 0:02:20.8]} 16... b4 {[%clk 0:01:58.2]} 17.
O-O {[%clk 0:02:14.3]} 17... bxc3 {[%clk 0:01:54.8]} 18. bxc3 {[%clk 0:02:15.2]}
18... g6 {[%clk 0:01:55.1]} 19. Bc4 {[%clk 0:02:03.8]} 19... Kh8 {[%clk
0:01:50.6]} 20. Qa4 {[%clk 0:01:52.6]} 20... Na5 {[%clk 0:01:43.9]} 21. Bxa6
{[%clk 0:01:36.3]} 21... Ra8 {[%clk 0:01:43.5]} 22. Bd3 {[%clk 0:01:26.6]} 22...
Bxe3 {[%clk 0:01:42.1]} 23. Nxe3 {[%clk 0:01:10.7]} 23... Nb3 {[%clk 0:01:39.2]}
24. Qxa8 {[%clk 0:00:51.7]} 24... Qxa8 {[%clk 0:01:37.6]} 25. axb3 {[%clk
0:00:52.4]} 25... Qc6 {[%clk 0:01:34.5]} 26. Rfc1 {[%clk 0:00:45.5]} 26... Kg7
{[%clk 0:01:26.4]} 27. b4 {[%clk 0:00:43]} 27... f5 {[%clk 0:01:24.5]} 28. exf5
{[%clk 0:00:40.8]} 28... gxf5 {[%clk 0:01:25.4]} 29. Nf1 {[%clk 0:00:18.3]}
29... e4 {[%clk 0:01:20.6]} 30. Ra6 {[%clk 0:00:15.5]} 30... Qb7 {[%clk
0:01:17.2]} 31. Be2 {[%clk 0:00:15.5]} 31... Rd8 {[%clk 0:01:08.3]} 32. g3
{[%clk 0:00:14]} 32... Kh8 {[%clk 0:01:05.4]} 33. Ne3 {[%clk 0:00:13.8]} 33...
f4 {[%clk 0:01:05]} 34. gxf4 {[%clk 0:00:13.4]} 34... Bh3 {[%clk 0:01:04.5]} 35.
Rca1 {[%clk 0:00:03]} 35... Qg7+ {[%clk 0:01:01.8]} 36. Kh1 {[%clk 0:00:03.7]}
36... Qxc3 {[%clk 0:00:56.7]} 37. Ra7 {[%clk 0:00:03.1]} 37... d5 {[%clk
0:00:46.5]} 38. Rg1 {[%clk 0:00:01.9]} 38... d4 {[%clk 0:00:30.5]} 39. Ng4
{[%clk 0:00:02]} 39... d3 {[%clk 0:00:28.7]} 40. Bd1 {[%clk 0:00:02.2]} 40...
Rg8 {[%clk 0:00:25.1]} 41. Rg3 {[%clk 0:00:01.2]} 41... Qe1+ {[%clk 0:00:23.2]}
42. Rg1 {[%clk 0:00:01.4]} 42... Qd2 {[%clk 0:00:20.6]} 0-1

[Event "Late-Titled-Tuesday-Blitz-April-23-2024"]
[Site "Chess.com"]
[Date "2024.04.23"]
[Round "6"]
[White "masterofpuppets2"]
[Black "kai_nov"]
[Result "1-0"]
[WhiteElo "2484"]
[BlackElo "2268"]
[TimeControl "180+1"]
[EndTime "15:08:19 PDT"]
[Termination "masterofpuppets2 won on time"]

1. d4 {[%clk 0:03:00.9]} 1... d5 {[%clk 0:02:57.5]} 2. c4 {[%clk 0:03:00.4]}
2... e6 {[%clk 0:02:54.5]} 3. Nc3 {[%clk 0:03:00.2]} 3... c6 {[%clk 0:02:54.4]}
4. e4 {[%clk 0:03:00]} 4... dxe4 {[%clk 0:02:53.5]} 5. Nxe4 {[%clk 0:03:00.9]}
5... Bb4+ {[%clk 0:02:52.8]} 6. Nc3 {[%clk 0:03:00.8]} 6... c5 {[%clk
0:02:52.4]} 7. Nf3 {[%clk 0:02:59.1]} 7... Nf6 {[%clk 0:02:42.4]} 8. Be3 {[%clk
0:02:56.9]} 8... cxd4 {[%clk 0:02:30.7]} 9. Nxd4 {[%clk 0:02:56.3]} 9... O-O
{[%clk 0:02:30.7]} 10. Be2 {[%clk 0:02:55.8]} 10... e5 {[%clk 0:02:22]} 11. Nb5
{[%clk 0:02:50.1]} 11... Nc6 {[%clk 0:02:22.2]} 12. O-O {[%clk 0:02:47.6]} 12...
Be6 {[%clk 0:02:16.2]} 13. a3 {[%clk 0:02:46.5]} 13... Bxc3 {[%clk 0:02:06.6]}
14. Nxc3 {[%clk 0:02:47.4]} 14... Rc8 {[%clk 0:01:50.8]} 15. b4 {[%clk 0:02:25]}
15... Nd4 {[%clk 0:01:43.6]} 16. c5 {[%clk 0:02:25.3]} 16... Nxe2+ {[%clk
0:01:28.4]} 17. Qxe2 {[%clk 0:02:26.2]} 17... a6 {[%clk 0:01:27.6]} 18. Rfd1
{[%clk 0:02:23.2]} 18... Qc7 {[%clk 0:01:26.6]} 19. h3 {[%clk 0:02:19.9]} 19...
h6 {[%clk 0:01:20]} 20. Rd6 {[%clk 0:01:53.4]} 20... Rfd8 {[%clk 0:00:57.8]} 21.
Rxd8+ {[%clk 0:01:44.7]} 21... Rxd8 {[%clk 0:00:56.1]} 22. Re1 {[%clk
0:01:45.6]} 22... Nd5 {[%clk 0:00:43.1]} 23. Ne4 {[%clk 0:01:25.2]} 23... f5
{[%clk 0:00:25.1]} 24. Nd6 {[%clk 0:01:24.9]} 24... e4 {[%clk 0:00:19.8]} 25.
Bd4 {[%clk 0:01:21.4]} 25... Nf4 {[%clk 0:00:13.2]} 26. Qe3 {[%clk 0:01:14.3]}
26... Nd3 {[%clk 0:00:13.1]} 27. Rd1 {[%clk 0:01:13]} 27... Rxd6 {[%clk
0:00:12.4]} 28. cxd6 {[%clk 0:01:08.9]} 28... Qxd6 {[%clk 0:00:13.3]} 29. Bc5
{[%clk 0:01:05]} 29... Qc7 {[%clk 0:00:10.9]} 30. Rxd3 {[%clk 0:01:04.7]} 30...
exd3 {[%clk 0:00:09.7]} 31. Qxe6+ {[%clk 0:01:04.7]} 31... Kh8 {[%clk
0:00:09.9]} 32. Qd5 {[%clk 0:00:53.8]} 32... b6 {[%clk 0:00:08.6]} 33. Qxd3
{[%clk 0:00:49.6]} 33... bxc5 {[%clk 0:00:08.2]} 34. Qc4 {[%clk 0:00:49.6]}
34... Qe5 {[%clk 0:00:06]} 35. Qxc5 {[%clk 0:00:47.4]} 35... Qa1+ {[%clk
0:00:06.2]} 36. Kh2 {[%clk 0:00:46.5]} 36... Qxa3 {[%clk 0:00:06.8]} 37. Qf8+
{[%clk 0:00:45.6]} 37... Kh7 {[%clk 0:00:06.7]} 38. Qxf5+ {[%clk 0:00:46.2]}
38... Kh8 {[%clk 0:00:07.1]} 39. Qc5 {[%clk 0:00:42.6]} 39... Qa4 {[%clk
0:00:06.7]} 40. f4 {[%clk 0:00:41.7]} 40... Qd7 {[%clk 0:00:03.4]} 41. f5 {[%clk
0:00:41.3]} 41... Qd3 {[%clk 0:00:02.1]} 42. g4 {[%clk 0:00:25.7]} 42... Qe2+
{[%clk 0:00:01.3]} 43. Kg3 {[%clk 0:00:25.9]} 43... Qe1+ {[%clk 0:00:01.5]} 44.
Kf4 {[%clk 0:00:25.9]} 1-0

[Event "Late-Titled-Tuesday-Blitz-April-23-2024"]
[Site "Chess.com"]
[Date "2024.04.23"]
[Round "6"]
[White "VladimirBugayev"]
[Black "katharinareinecke"]
[Result "1-0"]
[WhiteElo "2245"]
[BlackElo "2046"]
[TimeControl "180+1"]
[EndTime "15:08:19 PDT"]
[Termination "VladimirBugayev won on time"]

1. e4 {[%clk 0:03:00.9]} 1... c6 {[%clk 0:02:51.5]} 2. d4 {[%clk 0:03:00.3]}
2... d5 {[%clk 0:02:51.5]} 3. exd5 {[%clk 0:03:01]} 3... cxd5 {[%clk 0:02:51.5]}
4. Bd3 {[%clk 0:03:01.7]} 4... Nc6 {[%clk 0:02:50.7]} 5. c3 {[%clk 0:03:02.1]}
5... Qc7 {[%clk 0:02:50.7]} 6. Ne2 {[%clk 0:03:01.5]} 6... Bg4 {[%clk
0:02:47.5]} 7. O-O {[%clk 0:03:01.7]} 7... Bxe2 {[%clk 0:02:38.2]} 8. Qxe2
{[%clk 0:03:01.2]} 8... Nf6 {[%clk 0:02:36.3]} 9. Bg5 {[%clk 0:02:52.9]} 9... e6
{[%clk 0:02:32.6]} 10. Bh4 {[%clk 0:02:52.5]} 10... Bd6 {[%clk 0:02:29.4]} 11.
Bg3 {[%clk 0:02:52.7]} 11... Bxg3 {[%clk 0:02:22]} 12. fxg3 {[%clk 0:02:49.6]}
12... O-O {[%clk 0:02:09.5]} 13. g4 {[%clk 0:02:47.6]} 13... Nd7 {[%clk
0:01:57.7]} 14. Na3 {[%clk 0:02:34.2]} 14... a6 {[%clk 0:01:54.8]} 15. g5 {[%clk
0:02:28.4]} 15... b5 {[%clk 0:01:49.1]} 16. Nc2 {[%clk 0:02:18.2]} 16... b4
{[%clk 0:01:36.9]} 17. cxb4 {[%clk 0:02:04.4]} 17... Qb6 {[%clk 0:01:31.1]} 18.
Rf4 {[%clk 0:02:01]} 18... g6 {[%clk 0:01:25.3]} 19. a3 {[%clk 0:01:57.9]} 19...
Rac8 {[%clk 0:01:07.9]} 20. Qf2 {[%clk 0:01:46.8]} 20... e5 {[%clk 0:01:02.1]}
21. dxe5 {[%clk 0:01:46.5]} 21... Qxf2+ {[%clk 0:01:01.3]} 22. Rxf2 {[%clk
0:01:41.4]} 22... Ndxe5 {[%clk 0:01:01.1]} 23. Bxa6 {[%clk 0:01:40.8]} 23... Rc7
{[%clk 0:00:47.4]} 24. b5 {[%clk 0:01:40]} 24... Na5 {[%clk 0:00:45.1]} 25. Nb4
{[%clk 0:01:31.6]} 25... Nac4 {[%clk 0:00:41.2]} 26. Nxd5 {[%clk 0:01:27.7]}
26... Rd7 {[%clk 0:00:41.1]} 27. Nf6+ {[%clk 0:01:27.9]} 27... Kg7 {[%clk
0:00:39.2]} 28. Nxd7 {[%clk 0:01:27.6]} 28... Nxd7 {[%clk 0:00:40.1]} 29. b3
{[%clk 0:01:22.8]} 29... Nce5 {[%clk 0:00:32]} 30. Raf1 {[%clk 0:01:14.2]} 30...
h6 {[%clk 0:00:30]} 31. gxh6+ {[%clk 0:01:11.3]} 31... Kxh6 {[%clk 0:00:30.6]}
32. a4 {[%clk 0:01:11.3]} 32... f5 {[%clk 0:00:30.2]} 33. Rd2 {[%clk 0:01:09.1]}
33... Nc5 {[%clk 0:00:29.8]} 34. Rd5 {[%clk 0:01:07.7]} 34... Ned3 {[%clk
0:00:29.3]} 35. Rd1 {[%clk 0:01:02.3]} 35... Nxa6 {[%clk 0:00:14.9]} 36. bxa6
{[%clk 0:00:56.9]} 36... Nb4 {[%clk 0:00:13.3]} 37. Ra5 {[%clk 0:00:50.8]} 37...
Ra8 {[%clk 0:00:11.6]} 38. Rd6 {[%clk 0:00:49.8]} 38... Nc2 {[%clk 0:00:09.3]}
39. Rxf5 {[%clk 0:00:47.7]} 39... Re8 {[%clk 0:00:07]} 40. h3 {[%clk 0:00:38.5]}
40... Re2 {[%clk 0:00:06.2]} 41. Rff6 {[%clk 0:00:36.1]} 41... Ne3 {[%clk
0:00:02.9]} 42. Rxg6+ {[%clk 0:00:35.3]} 42... Kh7 {[%clk 0:00:03]} 43. Rdf6
{[%clk 0:00:20.2]} 43... Re1+ {[%clk 0:00:02.3]} 44. Kh2 {[%clk 0:00:20.5]}
44... Nf1+ {[%clk 0:00:01.3]} 45. Rxf1 {[%clk 0:00:20.6]} 1-0

[Event "Late-Titled-Tuesday-Blitz-April-23-2024"]
[Site "Chess.com"]
[Date "2024.04.23"]
[Round "6"]
[White "Indefatigable11"]
[Black "jaskol95"]
[Result "0-1"]
[WhiteElo "2401"]
[BlackElo "2588"]
[TimeControl "180+1"]
[EndTime "15:08:21 PDT"]
[Termination "jaskol95 won on time"]

1. d4 {[%clk 0:03:00.9]} 1... e6 {[%clk 0:02:59.7]} 2. e4 {[%clk 0:02:59.1]}
2... d5 {[%clk 0:02:59.8]} 3. e5 {[%clk 0:02:57.6]} 3... c5 {[%clk 0:02:58.6]}
4. c3 {[%clk 0:02:57.7]} 4... Qb6 {[%clk 0:02:53.9]} 5. Nf3 {[%clk 0:02:55.9]}
5... Bd7 {[%clk 0:02:54]} 6. Bd3 {[%clk 0:02:54.1]} 6... Bb5 {[%clk 0:02:53.7]}
7. O-O {[%clk 0:02:54.3]} 7... Bxd3 {[%clk 0:02:53.1]} 8. Qxd3 {[%clk
0:02:54.9]} 8... cxd4 {[%clk 0:02:52.3]} 9. cxd4 {[%clk 0:02:54.6]} 9... Nc6
{[%clk 0:02:52.9]} 10. Nc3 {[%clk 0:02:54.6]} 10... a6 {[%clk 0:02:52.4]} 11. a3
{[%clk 0:02:49.5]} 11... Nge7 {[%clk 0:02:50.7]} 12. b4 {[%clk 0:02:49.4]} 12...
Nf5 {[%clk 0:02:51.1]} 13. Be3 {[%clk 0:02:48.3]} 13... Be7 {[%clk 0:02:49]} 14.
Na4 {[%clk 0:02:47.7]} 14... Qc7 {[%clk 0:02:47.4]} 15. Rac1 {[%clk 0:02:46.8]}
15... O-O {[%clk 0:02:45]} 16. Bg5 {[%clk 0:02:45.9]} 16... Bxg5 {[%clk
0:02:40.7]} 17. Nxg5 {[%clk 0:02:46.1]} 17... Rac8 {[%clk 0:02:36.6]} 18. Nf3
{[%clk 0:02:33.5]} 18... f6 {[%clk 0:02:25.1]} 19. Nc5 {[%clk 0:02:31.2]} 19...
Qf7 {[%clk 0:02:13.9]} 20. exf6 {[%clk 0:02:30.2]} 20... gxf6 {[%clk 0:02:10.5]}
21. Rfe1 {[%clk 0:02:29.7]} 21... Rce8 {[%clk 0:02:09.5]} 22. Nxe6 {[%clk
0:02:27.1]} 22... Rxe6 {[%clk 0:02:04]} 23. Qxf5 {[%clk 0:02:27.1]} 23... Rfe8
{[%clk 0:02:02]} 24. Rxe6 {[%clk 0:02:17.5]} 24... Qxe6 {[%clk 0:02:00.4]} 25.
Qf4 {[%clk 0:02:00.5]} 25... Kg7 {[%clk 0:01:47]} 26. h3 {[%clk 0:01:58.3]}
26... Qe4 {[%clk 0:01:46.7]} 27. Qg3+ {[%clk 0:01:55]} 27... Qg6 {[%clk
0:01:46.8]} 28. Qd6 {[%clk 0:01:49.1]} 28... Qf7 {[%clk 0:01:17.8]} 29. Nh4
{[%clk 0:01:45.2]} 29... Re6 {[%clk 0:01:14.9]} 30. Qg3+ {[%clk 0:01:39.6]}
30... Kh8 {[%clk 0:01:12.4]} 31. Nf5 {[%clk 0:01:33.5]} 31... Qg6 {[%clk
0:01:12.5]} 32. Qf3 {[%clk 0:01:19.4]} 32... Re4 {[%clk 0:01:09]} 33. Rc5 {[%clk
0:00:54.6]} 33... Qf7 {[%clk 0:00:54.9]} 34. Qg3 {[%clk 0:00:47.6]} 34... h5
{[%clk 0:00:46]} 35. Rxd5 {[%clk 0:00:42.8]} 35... h4 {[%clk 0:00:41.1]} 36.
Nxh4 {[%clk 0:00:07.9]} 36... Qxd5 {[%clk 0:00:29]} 37. Ng6+ {[%clk 0:00:07.6]}
37... Kg7 {[%clk 0:00:26.5]} 38. Ne7+ {[%clk 0:00:07.2]} 38... Qg5 {[%clk
0:00:26.6]} 39. Nf5+ {[%clk 0:00:05]} 39... Kh8 {[%clk 0:00:18.2]} 40. Qf3
{[%clk 0:00:03.4]} 40... Rf4 {[%clk 0:00:11.4]} 0-1